Cogmind - Beta 15 @@@ ROGUE MODE // 2025.07.02 @ 20:06:39 Player: Annull999 Result: Destroyed by H-61 Shepherd with Heavy Assault Cannon Performance ------------- Evolutions (2) 1000 Regions Visited (5) 1000 Robots Destroyed (42) 210 Value Destroyed (850) 850 Prototype IDs (2) 40 Alien Tech Used (0) 0 Bonus (358) 358 TOTAL SCORE: 3458 Bonus ------- High Alert Combat Kills 55 Follower Combat Kills 14 Aligned with FarCom 300 Friendly Fire -11 Cogmind --------- Core Integrity 0/550 Matter 63/300 Energy 100/100 System Corruption 0% Temperature Cool (9) Movement Core (50) Location -8/Materials Parts ------- > --- POWER (1) -------- (None) > --- PROPULSION (4) --- (None) > --- UTILITY (3) ------ Modified TNC Armor Integrity Analyzer > --- WEAPON (3) ------- (None) > --- INVENTORY (5) ---- ECM Suite Ion Cannon Ion Cannon Improved Datajack Peak State ------------ > --- POWER ------------ Light Deuterium Engine > --- PROPULSION ------- Aluminum Leg Flexi-carbon Leg Combat Airjet Cesium-ion Thruster > --- UTILITY ---------- Modified TNC Launcher Guidance Computer Hacking Suite > --- WEAPON ----------- Medium Laser EM Pulse Cannon Grenade Launcher > --- INVENTORY -------- Ion Engine Compact Battery Targeting Computer Armor Integrity Analyzer ECM Suite [Rating: 36] Favorites ----------- Power Ion Engine Engine Ion Engine Power Core Light Nuclear Core Propulsion Aluminum Leg Leg Aluminum Leg Hover Unit Combat Airjet Flight Unit Cesium-ion Thruster Utility Small Storage Unit Device ECM Suite Storage Small Storage Unit Processor Modified TNC Hackware Hacking Suite Weapon Medium Laser Energy Gun Medium Laser Energy Cannon EM Pulse Cannon Ballistic Gun Autogun Launcher Grenade Launcher Special Melee Weapon Improved Datajack Build | -11 -10 -10 -10 -9 -8 ------- Run | Yrd Mat Min Exi Min Mat Slots Evolved 4 | . . . . . 4 Power . | . . . . . . Propulsion 2 | . . . . . 2 Utility 1 | . . . . . 1 Weapon 1 | . . . . . 1 Parts Attached 28 | . 1 3 1 5 18 Power 6 | . . 3 . 1 2 Engine 5 | . . 2 . 1 2 Core 1 | . . 1 . . . Reactor . | . . . . . . Propulsion 8 | . . . . 3 5 Treads . | . . . . . . Leg 2 | . . . . 2 . Wheel . | . . . . . . Hover 4 | . . . . 1 3 Flight 2 | . . . . . 2 Utility 5 | . 1 . 1 . 3 Device 1 | . 1 . . . . Storage . | . . . . . . Processor 3 | . . . 1 . 2 Hackware 1 | . . . . . 1 Protection . | . . . . . . Artifact . | . . . . . . Weapon 9 | . . . . 1 8 Energy Gun . | . . . . . . Energy Cannon 5 | . . . . . 5 Ballistic Gun 1 | . . . . . 1 Ballistic Cannon . | . . . . . . Launcher 2 | . . . . 1 1 Special Weapon . | . . . . . . Impact Weapon . | . . . . . . Slashing Weapon . | . . . . . . Piercing Weapon . | . . . . . . Special Melee Weapon 1 | . . . . . 1 Unidentified Prototypes 2 | . . . 1 . 1 Parts Lost 16 | . . 1 . 1 14 Power 4 | . . . . 1 3 Propulsion 5 | . . . . . 5 Utility 1 | . . . . . 1 Weapon 6 | . . 1 . . 5 Highest Loss Streak 7 | . . 1 . 1 7 To Critical Strikes 1 | . . . . . 1 Average Backups 6 | . 7 7 7 6 4 Power 1 | . 1 2 2 1 . Propulsion 2 | . 4 4 3 1 . Utility 2 | . . 1 1 3 2 Weapon . | . . . . . . Tool/Special . | . . . . . . Unused Backups 10 | . . . . 6 4 Power . | . . . . . . Propulsion 6 | . . . . 6 . Utility 4 | . . . . . 4 Weapon . | . . . . . . Tool/Special . | . . . . . . Average Slot Usage (%) 89 | . 92 94 85 94 88 Engine 12 | . 14 14 14 12 8 Leg 20 | . 28 28 28 17 8 Hover 6 | . . . . 10 17 Device 6 | . 7 14 12 . . Storage 10 | . 14 14 14 14 . Processor 8 | . . . 1 14 18 Hackware 1 | . . . . . 8 Energy Gun 13 | . 28 22 14 14 4 Energy Cannon 1 | . . . . . 7 Launcher 4 | . . . . 9 10 Peak Build Rating 36 | . 7 8 12 22 36 Average Rating 14 | . 6 6 6 15 30 On Entrance 9 | 6 6 7 6 12 17 Naked Turns . | . . . . . . Heaviest Build 18 | 14 16 16 14 13 18 Greatest Support 30 | 20 20 20 20 30 30 Greatest Overweight (x) 5 | . . . . 1 5 Average Overweight (x) . | . . . . . . Largest Inventory Capacity 8 | . 8 8 8 8 8 Average Capacity 7 | . 8 8 8 8 5 Most Carried 8 | . 8 8 8 8 6 Average Carried 6 | . 7 7 7 6 4 Final Capacity 8 | 8 8 8 8 8 5 Final Carried 8 | 6 8 7 8 6 4 Class Distribution -------------------- 81% | Mutant 10% | Scavenger-Skirmisher 4% | Skirmisher 3% | Scavenger-Mutant Dominant Class ---------------- Mutant | -10/Materials Mutant | -10/Mines Mutant | -10/Exiles Mutant | -9/Mines Scavenger-Skirmisher | -8/Materials Resources | -11 -10 -10 -10 -9 -8 ----------- Run | Yrd Mat Min Exi Min Mat Matter Collected 689 | 200 10 30 . 90 359 Remotely . | . . . . . . Salvage Created 661 | . 28 117 . 13 503 Parts 52 | . 2 3 . 3 44 Haulers Intercepted 2 | . . . . . 2 Recyclers Shooed 1 | . . . . . 1 Parts Field Recycled . | . . . . . . Retrieved Matter . | . . . . . . Parts Self-Destructed . | . . . . . . Prevented . | . . . . . . Kills | -11 -10 -10 -10 -9 -8 ------- Run | Yrd Mat Min Exi Min Mat Combat Hostiles Destroyed 29 | . . 5 . 1 23 Guns 4 | . . 3 . 1 . Cannons 3 | . . . . . 3 AOE 22 | . . 2 . . 20 Classes Destroyed 9 | . 1 2 . . 6 Worker 4 | . . . . . 4 Builder 1 | . . . . . 1 Tunneler 1 | . . . . . 1 Hauler 2 | . . . . . 2 Operator 1 | . . . . . 1 Watcher 3 | . 1 . . . 2 Swarmer 18 | . . 3 . 1 14 Grunt 9 | . . 2 . . 7 Sentry 3 | . . . . . 3 Best Kill Streak 8 | . 1 3 . 1 8 Combat Bots Only 5 | . . 3 . 1 5 Max Kills in Single Turn 5 | . 1 2 . 1 5 Gunslinging . | . . . . . . Exploded 3 | . . 2 . . 3 Melee . | . . . . . . Uniques/NPCs Destroyed . | . . . . . . Combat | -11 -10 -10 -10 -9 -8 -------- Run | Yrd Mat Min Exi Min Mat Hostile Shots Fired 138 | . 4 23 . 2 109 Missed 45 | . 1 7 . 1 36 Hits 93 | . 3 16 . 1 73 Projectile 93 | . 3 16 . 1 73 Critical Strikes 3 | . . . . . 3 Damage Taken 1622 | . 24 173 . 10 1415 Core 605 | . 7 46 . . 552 Absorbed by Shields . | . . . . . . Core Remaining (%) 89 | 100 . . . 78 . Volleys Fired 50 | . 1 12 . 1 36 Largest 3 | . 2 2 . 2 3 Hottest 150 | . 90 90 . 80 150 Shots Fired 100 | . 2 20 . 2 76 Gun 37 | . 2 20 . 1 14 Cannon 22 | . . . . . 22 Launcher 41 | . . . . 1 40 Special . | . . . . . . Kinetic . | . . . . . . Thermal 34 | . 1 12 . 1 20 Explosive 41 | . . . . 1 40 Electromagnetic 25 | . 1 8 . . 16 Robot Hit Streak 8 | . 1 7 . 2 8 Robot Miss Streak 5 | . 1 5 . . 2 Penetration Max . | . . . . . . Secondary Targets . | . . . . . . Shots Hit Robots 50 | . 1 11 . 1 37 Core Hits 71 | . 1 8 . 3 59 Critical Kills . | . . . . . . Critical Parts Destroyed . | . . . . . . Critical Strikes 2 | . . 1 . . 1 Burn 2 | . . 1 . . 1 Melee Attacks . | . . . . . . Impact . | . . . . . . Slashing . | . . . . . . Piercing . | . . . . . . Sneak Attacks . | . . . . . . Combat Hostiles . | . . . . . . Follow-up Attacks . | . . . . . . Damage Inflicted 3090 | . 13 275 . 71 2731 Guns 241 | . 13 154 . 12 62 Cannons 253 | . . . . . 253 Explosions 2584 | . . 121 . 59 2404 Melee . | . . . . . . Ramming 12 | . . . . . 12 Kinetic . | . . . . . . Thermal 386 | . 13 209 . 12 152 Explosive 2463 | . . . . 59 2404 Electromagnetic 229 | . . 66 . . 163 Impact . | . . . . . . Slashing . | . . . . . . Piercing . | . . . . . . Highest Corruption . | . . . . . . Average Corruption . | . . . . . . Corruption Purged . | . . . . . . Corruption Blocked . | . . . . . . Overload Shots . | . . . . . . Overflow Damage 59 | . . . . . 59 Projectiles 25 | . . . . . 25 Explosions 34 | . . . . . 34 Melee . | . . . . . . Knockbacks . | . . . . . . Impact . | . . . . . . Kinetic . | . . . . . . Secondary . | . . . . . . Self-Inflicted Damage 230 | . . . . . 230 Shots 9 | . . . . . 9 Rammed . | . . . . . . Targets Rammed 1 | . . . . . 1 Kicked 1 | . . . . . 1 Crushed . | . . . . . . Highest Temperature 234 | . 30 187 . 18 234 Average Temperature 67 | . 18 69 . 12 70 Received Heat Transfer 435 | . . 75 . . 360 Siege Activations . | . . . . . . Martial Activations . | . . . . . . Shielding Activations . | . . . . . . Robots Disrupted . | . . . . . . Combat Hostiles . | . . . . . . Robots Corrupted . | . . . . . . Combat Hostiles . | . . . . . . Parts Fried 1 | . . . . . 1 Impact Corruptions . | . . . . . . Robots Melted . | . . . . . . Combat Hostiles . | . . . . . . Parts Melted 1 | . . 1 . . . Heat Transferred 1014 | . 37 533 . 37 407 Parts Sabotaged . | . . . . . . Parts Stolen . | . . . . . . Parts Stripped . | . . . . . . Power Chain Reactions 2 | . . 2 . . . Alert | -11 -10 -10 -10 -9 -8 ------- Run | Yrd Mat Min Exi Min Mat Maximum Alert Level 2 | . . . . . 2 Low Security (%) 75 | . 100 100 . 100 28 Level 1 21 | . . . . . 62 Level 2 3 | . . . . . 9 Level 3 . | . . . . . . Level 4 . | . . . . . . Level 5 . | . . . . . . High Security . | . . . . . . Max Security . | . . . . . . Peak Influence 448 | . 7 81 . 92 448 Initial . | . . . . . . Average 85 | . . 19 . 9 225 Influence Increases 1252 | . 7 146 . 92 1007 Destroy 0b10 Robot/C 620 | . . 100 . 60 460 Destroy 0b10 Robot/NC 65 | . 5 . . . 60 Destroy Leader 120 | . 2 20 . 10 88 Allied During Kill 16 | . . 4 . 11 1 Successful Hack 19 | . . . . . 19 Disable Machine 105 | . . 15 . . 90 Destroy Structure 232 | . . 7 . 11 214 Lose Combat Pursuer 75 | . . . . . 75 Influence Decreases 875 | . 7 146 . 92 630 Time Decay 570 | . 7 136 . 92 335 Lost Part 150 | . . 10 . . 140 Lost Ally 5 | . . . . . 5 Purge Threat 150 | . . . . . 150 Squads Dispatched 5 | . 2 . . . 3 Investigation 2 | . . . . . 2 Extermination . | . . . . . . Reinforcement 3 | . 2 . . . 1 Assault . | . . . . . . Garrison . | . . . . . . Intercept . | . . . . . . Searches Triggered . | . . . . . . Construction Impeded 1 | . . . . . 1 Haulers Reinforced . | . . . . . . Active Scanning Responses . | . . . . . . Cargo Convoy Interrupts . | . . . . . . Stealth | -11 -10 -10 -10 -9 -8 --------- Run | Yrd Mat Min Exi Min Mat Distress Signals 3 | . 1 . . 1 1 Communications Jammed . | . . . . . . Distress Signals . | . . . . . . Times Spotted 60 | . 6 5 . 4 45 Peak Tracking Total 10 | . 2 2 . 3 10 Tactical Retreats 5 | . 1 . . 1 3 Traps | -11 -10 -10 -10 -9 -8 ------- Run | Yrd Mat Min Exi Min Mat Traps Triggered 1 | . . . . . 1 Indirectly . | . . . . . . Trap Hack Attempts . | . . . . . . Triggered . | . . . . . . Disarmed . | . . . . . . Reprogrammed . | . . . . . . Reused . | . . . . . . Traps Extracted . | . . . . . . Installed . | . . . . . . Triggered . | . . . . . . Machines | -11 -10 -10 -10 -9 -8 ---------- Run | Yrd Mat Min Exi Min Mat Machines Disabled 7 | . . 1 . . 6 Max in Single Turn 1 | . . 1 . . 1 Machines Repaired . | . . . . . . Machines Dismantled . | . . . . . . Machines Sabotaged . | . . . . . . Overloaded Fab Kills . | . . . . . . Hacking | -11 -10 -10 -10 -9 -8 --------- Run | Yrd Mat Min Exi Min Mat Machines Accessed 12 | . 2 . 2 1 7 Terminals 9 | . 2 . . 1 6 Fabricators . | . . . . . . Repair Stations 1 | . . . . . 1 Recycling Units . | . . . . . . Scanalyzers . | . . . . . . Garrison Access . | . . . . . . Total Hacks 63 | . 5 . 19 2 37 Successful 35 | . 1 . 19 . 15 Failed 28 | . 4 . . 2 22 Catastrophic 4 | . . . . 1 3 Database Lockouts . | . . . . . . Manual 36 | . 5 . 1 1 29 Terminals 39 | . 5 . . 2 32 Fabricators . | . . . . . . Repair Stations 5 | . . . . . 5 Recycling Units . | . . . . . . Scanalyzers . | . . . . . . Garrison Access . | . . . . . . Terminal Hacks 26 | . . . 19 . 7 Record 19 | . . . 19 . . Level Access Points 1 | . . . . . 1 Branch Access Points 1 | . . . . . 1 Alert Level 1 | . . . . . 1 Unreport Threat 1 | . . . . . 1 Locate Traps 2 | . . . . . 2 Zone Layout 1 | . . . . . 1 Fabricator Hacks . | . . . . . . Repair Station Hacks 4 | . . . . . 4 Refit 4 | . . . . . 4 Recycling Unit Hacks . | . . . . . . Scanalyzer . | . . . . . . Garrison Access Hacks . | . . . . . . Unauthorized Hacks 5 | . 1 . . . 4 Terminals 5 | . 1 . . . 4 Botnet 5 | . 1 . . . 4 Fabricators . | . . . . . . Repair Stations . | . . . . . . Recycling Units . | . . . . . . Scanalyzers . | . . . . . . Garrison Access . | . . . . . . Data Cores Recovered 2 | . . . . . 2 Used 2 | . . . . . 2 Hacking Detections 9 | . 2 . . 1 6 Full Trace Events 4 | . 1 . . 1 2 Feedback Events . | . . . . . . Feedback Blocked . | . . . . . . Robot Schematics Acquired . | . . . . . . Robots Built . | . . . . . . Authchips . | . . . . . . Time . | . . . . . . Total Robot Build Rating . | . . . . . . Part Schematics Acquired . | . . . . . . Parts Built . | . . . . . . Authchips . | . . . . . . Time . | . . . . . . Total Part Build Rating . | . . . . . . Parts Repaired . | . . . . . . Time . | . . . . . . Parts Recycled . | . . . . . . Recycled Matter . | . . . . . . Retrieved Matter . | . . . . . . Retrieved Components . | . . . . . . Parts Scanalyzed . | . . . . . . Part Schematics Acquired . | . . . . . . Parts Damaged . | . . . . . . Bothacking | -11 -10 -10 -10 -9 -8 ------------ Run | Yrd Mat Min Exi Min Mat Used RIF Installer . | . . . . . . Robots Hacked . | . . . . . . Non-combat . | . . . . . . Combat . | . . . . . . Robot Hacks Applied . | . . . . . . Relay Couplers Released . | . . . . . . Fabnet Peak Effective % . | . . . . . . Robots Rewired . | . . . . . . Allies Hacked . | . . . . . . Hacks Repelled . | . . . . . . Allies | -11 -10 -10 -10 -9 -8 -------- Run | Yrd Mat Min Exi Min Mat Total Allies 4 | . . 1 . 3 . Largest Group 3 | . . 1 . 3 3 Highest-Rated Group 40 | . . 31 . 40 40 Highest-Rated Ally 31 | . . 31 . 16 16 Total Orders . | . . . . . . Ally Attacks 27 | . . 4 . 10 13 Total Damage 222 | . . 21 . 93 108 Kills 4 | . . . . 3 1 Allies Corrupted . | . . . . . . Allies Melted . | . . . . . . Intel | -11 -10 -10 -10 -9 -8 ------- Run | Yrd Mat Min Exi Min Mat Active Infowar (turns) 2156 | . 107 480 1312 257 . T.N.C. 387 | . . . 130 257 . ECM 1769 | . 107 480 1182 . . Robot Analysis Total . | . . . . . . Derelict Logs Recovered 3 | . . 2 . 1 . Drone Launches . | . . . . . . Drone Recoveries . | . . . . . . Exploration | -11 -10 -10 -10 -9 -8 ------------- Run | Yrd Mat Min Exi Min Mat Turns Passed 3870 | . 203 480 1312 995 880 Spaces Moved 3090 | 1 160 362 1091 696 780 Core 39 | . . . . . 39 Treads . | . . . . . . Legs 1976 | 1 160 362 1091 213 149 Wheels . | . . . . . . Hover 1075 | . . . . 483 592 Flight . | . . . . . . Fastest Speed 50 | 120 120 120 120 90 50 Average Speed 116 | 120 120 120 120 139 87 Slowest Speed 300 | 120 120 120 120 160 300 Overloaded Moves . | . . . . . . Propulsion Burnouts . | . . . . . . Robots Hopped . | . . . . . . Potential Cave-ins 7 | . . . . 7 . Cave-ins Triggered . | . . . . . . Exploration Rate (%) 57 | 2 34 75 94 91 50 Regions Visited 5 Branch Regions 3 Pre-discovered Areas . | . . . . . . Known Exits Taken . | . . . . . . Unknown Exits Taken 5 | 1 1 1 1 1 . Scrap Searched . | . . . . . . Spaces Dug 7 | . . . . . 7 Terrain Destroyed 279 | . . 7 . 11 261 Melee . | . . . . . . Projectile . | . . . . . . AOE 279 | . . 7 . 11 261 Terrain Rammed . | . . . . . . Walls Destroyed . | . . . . . . Machines Disabled . | . . . . . . Actions | -11 -10 -10 -10 -9 -8 --------- Run | Yrd Mat Min Exi Min Mat Total 3291 | . 170 387 1094 718 922 Wait 37 | . . 6 . 4 27 Move 3085 | . 159 361 1090 695 780 Hop . | . . . . . . Pick Up 43 | . 6 2 2 5 28 Fast Attach . | . . . . . . Attach 20 | . 1 . . 2 17 Detach 1 | . . . . . 1 Swap 19 | . . 3 1 5 10 Drop 34 | . 3 3 1 5 22 Fire 50 | . 1 12 . 1 36 Melee . | . . . . . . Ram . | . . . . . . Kick 1 | . . . . . 1 Crush . | . . . . . . Escape Stasis . | . . . . . . Rewire 1 | . . . . 1 . Trap . | . . . . . . Miscellaneous . | . . . . . . Route ------- -11/Scrapyard -10/Materials -10/Mines (discovered 3 exits: [*Mat x2] / *Exi) -10/Exiles (discovered 2 exits: *Min x2) -9/Mines (discovered 2 exits: *Mat x2) -8/Materials (discovered 3 exits: Fac x3) History --------- Turn | Location | Event 1 | -11/Scrapyard | Discovered new exit (range 0) 1 | -11/Scrapyard | Entered Materials 197 | -10/Materials | Discovered new exit (range 7) 204 | -10/Materials | Entered Mines 207 | -10/Mines | Received a Mining Laser from a helpful Derelict 214 | -10/Mines | Met a Derelict bent on vengeance 216 | -10/Mines | Discovered new exit (range 15) 315 | -10/Mines | Build established: Mutant 366 | -10/Mines | Learned Materials garrison access intel 458 | -10/Mines | Discovered new exit (range 10) 592 | -10/Mines | Learned Materials terminal intel 675 | -10/Mines | Deemed a non-threat by the Exiles lab entrance 676 | -10/Mines | Discovered new exit (range 5) 684 | -10/Mines | Entered Exiles 710 | -10/Exiles | Discovered new exit (range 14) 740 | -10/Exiles | Met 8R-AWN 761 | -10/Exiles | Met EX-HEX 834 | -10/Exiles | Met EX-DEC 911 | -10/Exiles | Met EX-BIN 1144 | -10/Exiles | Visited The Gauntlet 1685 | -10/Exiles | Discovered new exit (range 11) 1817 | -10/Exiles | Aligned with FarCom system 1818 | -10/Exiles | Given EX-Vault access code 1859 | -10/Exiles | Opened EX-Vault 1865 | -10/Exiles | Found Prototype Processor 1866 | -10/Exiles | Identified Modified TNC 1905 | -10/Exiles | Warned to stay clear of 0b10 Research branches 1912 | -10/Exiles | Exiles lab attacked by MAIN.C 1996 | -10/Exiles | Left Exiles lab with Modified TNC 1996 | -10/Exiles | Entered Mines 2063 | -9/Mines | Assembled infested the area 2068 | -9/Mines | Assisted by a Guerilla fighting off Assembled 2125 | -9/Mines | Assisted by bots powering up and referring to "LRC-V3" 2302 | -9/Mines | YI-UF0 nonchalantly dropped a Grenade Launcher on the ground 2384 | -9/Mines | Discovered new exit (range 8) 2965 | -9/Mines | Discovered new exit (range 5) 2991 | -9/Mines | Entered Materials 2991 | -8/Materials | Accompanied by 3 allies 2991 | -8/Materials | Evolved 4 slots: Propulsion x2, Utility x1, Weapon x1 2992 | -8/Materials | Loaded intel: 12 terminal locations 2993 | -8/Materials | Loaded intel: 1 garrison access location 3409 | -8/Materials | Build established: Scavenger-Skirmisher 3723 | -8/Materials | Lost 4 parts (1p2n1w) 3759 | -8/Materials | Identified exit to Factory 3833 | -8/Materials | Core integrity fell below 50% 3858 | -8/Materials | Core integrity fell below 20% 3871 | -8/Materials | Destroyed by H-61 Shepherd with Heavy Assault Cannon Last Messages --------------- 03842_ Critical hit (Destroy). 03842_ Ion Cannon destroyed. 03842_ Destroyed Aluminum Leg. 03844_ G-47 Trooper destroyed. 03845_ Hacking Suite destroyed. 03846_ Cmb. Airjet destroyed. 03847_ The unstable cave ceiling collapses. 03848_ Critical hit (Burn: +37). 03850_ Mni. Grenade Launcher destroyed. 03851_ Acquired Ion Engine. 03852_ Ion Cannon destroyed. 03857_ The unstable cave ceiling collapses. 03859_ U-05 Engineer lays Concrete. 03860_ U-05 Engineer builds a Wall. 03862_ Penetrated by Slug. 03865_ Ion Engine destroyed. 03868_ Slug penetrates W-25 Informer. 03869_ C-30 ARC bursts open, deploying its payload. 03869_ G-50 Soldier unfolds itself. 03869_ G-47 Trooper unfolds itself. Map ----- +----------------------------------------------------+ | #?# #???????????????????????????????????????? | | ?+ """ #???????????????????????????????????????? | | ## """ #???????????????????????????????????????? | | ## """ #???????????????????????????????????????? | | ## #????"""????????????????????????????????? | | ## #????"T"## #????????????????????????????? | | #####+###### +????????????????????????????? | | ] #????????????????????????????? | | ########## /#????????????????????????????? | | #????????? g #????????????????????????????? | | +########## [ """ #????????????????????????????? | | # """ #????????????????????????????? | | = # """g??????????????????????????????? | | = # ????????w????????????????????? | | # # ??""???? | | + ###################### ??T"???? | | ^# #######+####???????????# ## ??""???? | | ##### #???? #???????????# """ ## ???????? | | ##### #????""""" #???????????# "Y" ######???????? | | # #????""""" #???????????# #????????????? | | + #????""""" #???????????# ! #????????????? | | # #???? #######?##### ######???????? | | #### ############ #######r # = ???????? | | * # at t g k ???????? | | = % g% H ???????? | | = = % @* g ???????? | | =# # ##### h###+######+ ## ???????? | | [ | # #???## ### # ####+##???????? | | #* #???## # " # # ???????? | | # #???##w # # T # # """???????? | | # # #???## ## " # # """???????? | | # ##+###### # # # """???????? | | # # ## ### # # """???????? | | # # ## #?# =######## """???????? | | # # ## ###########??# """???????? | | ########### ## # #??# """???????? | | ??????############# # #??# ???????? | | ??????# ####### + // #??#######???????? | | ??????# # /// #????????????????? | | ??????# # //! #????????????????? | | ??????# = # #????????????????? | | ??????# ######## ## #????????????????? | | ######## # #### ## #????????????????? | | # / # ############????????????????? | | """ / ! /# #???????????????????????????? | | """ / # #???????????????????????????? | | """ = # #???????????????????????????? | | ]# #???????????????????????????? | | "" ! S"" # #???????????????????????????? | | !! " # "" # #???????????????????????????? | +----------------------------------------------------+ Best States ------------- Heat Dissipation 31 Energy Generation 14 Energy Capacity 250 Matter Stores 300 Matter Capacity 300 Sight Range 16 Terrain Scan Density 10 ECM Strength 1 Evasion (%) 55 Launcher Accuracy 20 Armor Integrity Analysis 30 Offensive Hacking 10 Item Schematics ----------------- None Robot Schematics ------------------ None Fabricated ------------ Nothing Repaired ---------- Nothing Alien Tech Used ----------------- None Achievements -------------- None Challenges ------------ None Game ------ Seed PointyBraceRegenerator Manual? 0 Play Time 01:04:32 Cumulative 19.6 hours Start 2025.06.30 @ 17:17:45 End 2025.07.02 @ 20:06:39 Sessions 3 Manual Loads 0 Difficulty Rogue Special Mode None Game No. 33 Rogue 33 Adventurer 0 Explorer 0 Win Type - Total 0 Types 0/0/0/0/0/0/0/0/0/0 Lore% 6 Gallery% 17 Achievement% 19 Wizard Run 0 Options --------- Layout 0 ASCII 0 Keyboard 0 Movement Numpad Keybinds 0 Fullscreen 2 Font 24/Smallcaps Map View 76x50 Zoom Use 0% Tactical HUD 1 Map Filters NONE Filters NONE Steam 1 RUN: 5796532b-ec85-4863-95b5-30c4a56bbfa0